bitfinex/quotes_ETHUSD_20260308
["timestamp","ask_amount","ask_price","bid_price","bid_amount"]
[1772945716118,2.41466153,1934.0,1932.6,1.29357191]
[1772945716323,3.09616582,1933.8,1932.6,1.29357191]
[1772945717330,1.29285825,1933.7,1932.4,1.293728]
[1772945717629,1.29285825,1933.7,1932.4,1.93117697]
[1772945717937,1.29285825,1933.7,1932.5,0.63744897]
[1772945719346,5.17121371,1933.8,1932.6,1.29359412]
[1772945719529,5.17121371,1933.8,1932.6,1.93104309]
[1772945719734,0.00153886,1934.0,1932.7,0.63744897]
[1772945719922,1.29276369,1933.9,1932.7,0.63744897]
[1772945720826,0.60496936,1933.5,1932.2,1.29386191]
[1772945721067,0.60496936,1933.1,1932.0,0.00153886]
[1772945721333,0.60496936,1932.9,1932.0,0.00153886]
[1772945721705,0.60496936,1932.7,1931.2,5.17804671]
[1772945723535,1.29359412,1932.6,1931.2,5.17804671]
[1772945723732,1.29359412,1932.6,1931.2,5.81549568]
[1772945723950,1.29359412,1932.6,1931.3,0.63744897]
[1772945724502,1.29339334,1932.9,1931.3,0.63744897]
[1772945725129,1.29339334,1932.9,1932.1,0.0011]
[1772945725535,0.00153886,1933.0,1932.1,0.0011]
[1772945726531,0.60650822,1933.0,1932.1,0.0011]
[1772945726735,0.60650822,1933.0,1932.0,0.0011]
[1772945727610,1.29339334,1932.9,1932.0,0.0011]
[1772945728413,0.00153886,1933.0,1932.0,0.0011]
[1772945728617,0.00153886,1933.0,1932.0,0.63854897]
[1772945729026,0.00153886,1933.0,1932.2,0.63744897]
[1772945729616,0.00153886,1933.0,1932.3,0.63744897]
[1772945729812,0.00153886,1933.0,1932.2,1.29383278]
[1772945730035,0.00153886,1933.0,1932.2,1.93128175]
[1772945730234,0.00153886,1933.0,1932.3,0.63744897]
[1772945731649,0.00153886,1933.0,1932.4,1.293728]
[1772945732848,0.00153886,1933.0,1932.3,1.29374875]
[1772945733149,0.00153886,1933.0,1932.3,1.91857961]
[1772945733539,0.00153886,1933.0,1932.4,0.62483086]
[1772945733838,0.001,1933.6,1932.6,0.62483086]
[1772945734151,0.001,1933.6,1932.7,0.62483086]
[1772945735628,0.001,1933.6,1932.8,1.29346026]
[1772945735950,0.001,1933.6,1932.9,0.62483086]
[1772945736875,0.001,1933.6,1932.8,1.91829112]
[1772945737074,0.001,1933.6,1932.9,0.62483086]
[1772945737580,0.00153886,1934.0,1932.9,0.62483086]
[1772945737879,0.00153886,1934.0,1933.1,0.62483086]
[1772945739654,0.001,1933.5,1933.1,0.62483086]
[1772945739836,5.16883498,1934.7,1933.3,0.62483086]
[1772945740039,5.16883498,1934.7,1933.4,1.85883086]
[1772945740240,5.16883498,1934.7,1933.5,0.62483086]
[1772945740873,1.29219,1934.7,1933.5,0.62483086]
[1772945741851,0.58696986,1935.0,1933.6,1.91775597]
[1772945742482,0.58696986,1935.0,1933.7,0.62483086]
[1772945743964,1.29205643,1934.9,1933.8,1.91762225]
[1772945744201,0.585431,1934.8,1933.8,1.29279139]
[1772945744601,1.29205643,1934.9,1933.8,1.29279139]
[1772945745262,1.29205643,1934.9,1933.9,0.62483086]
[1772945745958,0.585431,1934.9,1933.5,1.91782284]
[1772945746390,0.585431,1934.9,1933.6,0.62483086]
[1772945748274,1.29212321,1934.8,1933.7,1.29285825]
[1772945748474,1.29212321,1934.8,1933.8,0.62483086]
[1772945750397,5.75392386,1934.9,1933.9,1.29272454]
[1772945750398,1.87751887,1934.9,1933.9,1.29272454]
[1772945750766,1.29208787,1934.9,1933.9,1.9175554]
[1772945751114,1.29208787,1934.9,1934.0,0.62483086]
[1772945751573,1.29208787,1934.9,1933.7,0.62483086]
[1772945751574,0.585431,1934.8,1933.7,0.62483086]
[1772945751862,1.29208787,1934.9,1933.3,0.62483086]
[1772945752651,5.75494656,1935.0,1933.5,0.62483086]
[1772945753318,1.29298966,1935.1,1933.5,0.69036686]
[1772945753523,1.29293371,1935.1,1934.0,0.00153886]
[1772945753725,1.29293371,1935.1,1934.1,0.62483086]
[1772945754115,0.001,1935.1,1934.1,0.62483086]
[1772945754354,0.001,1934.8,1934.1,0.62483086]
[1772945754553,0.001,1935.1,1934.3,0.62483086]
[1772945755677,5.75305787,1935.5,1934.3,0.62483086]
[1772945755678,0.001,1935.5,1934.3,0.62483086]
[1772945756438,0.001,1935.5,1934.5,0.62483086]
[1772945757052,0.001,1935.5,1934.2,5.16998506]
[1772945757053,0.586431,1935.5,1934.2,5.16998506]
[1772945757452,0.586431,1935.5,1934.2,5.79481592]
[1772945757652,0.586431,1935.5,1934.3,0.62483086]
[1772945758498,1.29172264,1935.4,1934.4,1.2923904]
[1772945758797,1.29172264,1935.4,1934.4,1.91722126]
[1772945758957,1.29172264,1935.4,1934.5,0.62483086]
[1772945759476,1.87715364,1935.4,1934.4,1.2923904]
[1772945760659,1.29268589,1935.5,1934.4,0.62483086]
[1772945761046,0.001,1935.5,1934.4,0.62483086]
[1772945761452,1.29291347,1936.0,1934.4,0.63822625]
[1772945761673,0.00153886,1936.0,1934.6,0.63822625]
[1772945761891,0.00153886,1936.0,1934.8,0.63822625]
[1772945762653,0.00153886,1936.0,1935.0,0.61124832]
[1772945763660,2.15980206,1936.5,1935.0,0.67678432]
[1772945763876,2.15975107,1936.5,1935.0,0.67832318]
[1772945764156,2.15975859,1936.5,1935.0,0.67832318]
[1772945764386,5.16347838,1936.7,1935.0,0.67832318]
[1772945764387,1.94808104,1936.8,1935.3,0.61124832]
[1772945764591,1.94808104,1936.8,1935.5,0.61124832]
[1772945764793,1.94808104,1936.8,1935.6,1.90283749]
[1772945765088,1.94808104,1936.8,1935.7,0.61124832]
[1772945765290,1.29084624,1936.8,1935.7,0.61124832]
[1772945765891,1.29076214,1936.9,1935.7,0.61124832]
[1772945766293,1.2922339,1937.0,1935.7,0.61124832]
[1772945766788,1.94943394,1937.0,1935.8,1.29145572]
[1772945766989,0.6572348,1936.9,1935.8,1.29145572]
[1772945767561,0.00153886,1937.0,1935.9,0.61124832]
[1772945768792,0.00153886,1937.0,1936.1,0.61124832]
[1772945768964,0.00153886,1937.0,1936.2,0.61124832]
[1772945769164,0.001,1936.9,1936.2,0.61124832]
[1772945770584,0.001,1936.9,1936.0,1.29132231]
[1772945770898,0.001,1936.9,1935.8,4.52754258]
[1772945771696,0.001,1936.9,1935.9,0.61124832]
[1772945772873,0.56094949,1936.7,1935.6,0.61124832]
[1772945773070,1.29078893,1936.8,1935.7,0.61124832]
[1772945775206,0.001,1936.9,1935.9,0.61124832]
[1772945777506,0.001,1936.9,1936.1,0.61124832]
[1772945779878,0.001,1936.9,1936.2,1.29118892]
[1772945780082,0.001,1936.9,1936.2,1.90243724]
[1772945780510,0.001,1936.9,1936.3,0.61124832]
[1772945781314,0.001,1936.9,1936.2,1.90243724]
[1772945781511,0.001,1936.9,1936.3,0.61124832]
[1772945782088,0.001,1936.9,1936.4,1.90230388]
[1772945783616,0.001,1936.8,1936.4,1.90230388]
[1772945785415,0.001,1936.8,1936.5,0.61124832]
[1772945785785,0.00153886,1937.0,1936.5,0.61124832]
[1772945785986,0.00153886,1937.0,1936.6,1.29092223]
[1772945786983,0.00153886,1937.0,1936.2,5.77578771]
[1772945787420,0.00153886,1937.0,1936.3,0.61124832]
[1772945788193,0.00153886,1937.0,1936.4,1.29105556]
[1772945789422,0.00153886,1937.0,1936.4,1.90230388]
[1772945789924,0.51343248,1937.0,1936.1,1.90356336]
[1772945790216,0.51343248,1937.0,1936.1,0.0011]
[1772945790532,1.29072228,1936.9,1936.2,0.61648038]
[1772945791522,1.29223726,1937.0,1936.2,0.61648038]
[1772945792331,0.00153886,1937.0,1936.4,0.61648038]
[1772945794823,0.00153886,1937.0,1936.4,1.90753417]
[1772945795189,0.00153886,1937.0,1936.5,0.64065936]
[1772945796252,0.00153886,1937.0,1936.3,1.29112224]
[1772945796818,0.00153886,1937.0,1936.3,0.64065936]
[1772945797406,0.00153886,1937.0,1936.4,0.0011]
[1772945797609,0.04141827,1936.9,1936.1,0.0011]
[1772945797830,0.04141827,1936.9,1936.3,0.0011]
[1772945798031,0.04141827,1936.9,1935.7,1.29151744]
[1772945798326,0.04141827,1936.9,1935.6,1.9322059]
[1772945798624,0.04141827,1936.9,1935.5,1.2916559]
[1772945798827,0.03564788,1936.7,1935.4,5.80751267]
[1772945799201,0.03564788,1936.6,1935.4,1.932382]
[1772945799408,0.03564788,1936.6,1935.5,0.64065936]
[1772945800927,1.29098889,1936.5,1935.5,1.93226544]
[1772945801429,0.03080347,1936.4,1935.5,1.93226544]
[1772945801800,0.03080347,1936.4,1935.5,0.64065936]
[1772945802001,0.03080347,1936.4,1935.5,1.93230997]
[1772945802527,1.29098889,1936.5,1935.6,0.64065936]
[1772945802727,0.05486147,1936.4,1935.6,0.64065936]
[1772945803026,1.34598371,1936.3,1935.3,0.64065936]
[1772945803233,0.05486147,1936.2,1935.3,1.93243257]
[1772945803530,0.05486147,1936.2,1935.0,0.64219822]
[1772945804235,0.05486147,1936.2,1935.0,1.93418342]
[1772945804526,0.05486147,1936.2,1935.1,0.64065936]
[1772945804899,1.29125561,1936.1,1935.1,0.64065936]
[1772945805100,0.05007852,1936.0,1935.1,0.64065936]
[1772945805300,1.29125561,1936.1,1935.0,0.00153886]
[1772945805301,2.50030095,1935.9,1935.0,0.00153886]
[1772945805512,0.05007852,1935.8,1935.0,0.00153886]
[1772945805912,0.04770176,1935.7,1935.0,0.00153886]
[1772945806122,0.04770176,1935.7,1934.9,0.0011]
[1772945806321,0.0461629,1935.4,1934.9,0.0011]
[1772945806935,1.29178938,1935.3,1934.9,0.0011]
[1772945809543,1.29178938,1935.3,1935.0,0.0011]
[1772945809910,1.29158917,1935.6,1935.0,0.0011]
[1772945811140,6.64035668,1935.8,1935.0,0.0011]
[1772945811341,3.79173359,1935.9,1935.0,0.64175936]
[1772945811636,1.29143264,1935.9,1935.0,0.64175936]
[1772945813309,5.16709493,1936.0,1935.0,0.64175936]
[1772945813310,0.00153886,1936.0,1935.1,1.29192289]
[1772945813625,0.00153886,1936.0,1935.2,0.64065936]
[1772945815316,0.00153886,1936.0,1935.3,1.29178938]
[1772945815638,0.00153886,1936.0,1935.4,0.64065936]
[1772945816438,0.00153886,1936.0,1935.5,0.61636762]
[1772945818716,1.29078893,1936.8,1935.5,0.61636762]
[1772945818717,1.29078893,1936.8,1935.6,0.64065936]
[1772945819820,0.02098116,1936.7,1935.6,0.64065936]
[1772945820429,2.33223999,1936.6,1935.6,0.64065936]
[1772945820947,1.29098889,1936.5,1935.3,0.68883378]
[1772945823046,0.001,1936.7,1935.5,0.68883378]
[1772945825246,0.001,1936.7,1935.7,0.68883378]
[1772945825748,0.001,1936.7,1935.8,0.68883378]
[1772945827651,0.001,1936.7,1936.0,0.68883378]
[1772945829842,0.001,1936.7,1936.2,0.67177282]
[1772945830154,0.001,1936.9,1936.2,0.67127282]
[1772945831835,0.001,1936.9,1936.3,1.29112224]
[1772945832039,0.001,1936.9,1936.4,0.67127282]
[1772945833128,0.001,1936.9,1935.9,0.67127282]
[1772945834066,0.001,1936.9,1936.1,0.67127282]
[1772945834251,0.001,1936.8,1936.1,0.67127282]
[1772945838163,0.001,1936.8,1936.1,1.96251956]
[1772945838364,0.001,1936.8,1936.1,0.67127282]
[1772945840042,0.001,1936.8,1935.8,0.67127282]
[1772945840361,0.001,1936.8,1935.9,0.67127282]
[1772945842375,0.001,1936.8,1936.0,1.29132231]
[1772945842580,0.001,1936.8,1936.1,0.67127282]
[1772945843338,0.001,1936.8,1935.8,0.67127282]
[1772945845557,0.001,1936.8,1935.5,0.88234356]
[1772945845558,2.33223999,1936.7,1935.5,0.88234356]
[1772945846450,2.33480052,1936.7,1935.6,0.88234356]
[1772945847351,0.001,1936.8,1935.6,0.88234356]
[1772945847982,0.001,1936.8,1936.0,0.88234356]
[1772945848171,0.001,1936.7,1936.0,0.88234356]
[1772945848648,0.001,1936.7,1936.2,0.88234356]
[1772945850686,0.001,1936.7,1936.3,0.88234356]
[1772945852896,0.001,1936.7,1935.9,0.88344356]
[1772945854969,0.001,1936.7,1935.9,1.29248391]
[1772945855195,0.001,1936.7,1936.0,0.88234356]
[1772945855375,0.001,1936.7,1935.9,0.0011]
[1772945857000,0.001,1936.7,1935.9,0.88344356]
[1772945857497,1.29185557,1936.7,1935.9,0.88344356]
[1772945861912,1.29185557,1936.7,1936.0,0.0011]
[1772945862076,0.22802291,1936.6,1935.8,0.53296006]
[1772945863204,0.22802291,1936.6,1935.8,1.82441426]
[1772945863512,0.22802291,1936.6,1935.8,0.53296006]
[1772945864303,0.24988679,1936.4,1935.8,0.53296006]
[1772945864576,0.24988679,1936.4,1935.8,0.0011]
[1772945867612,1.29112224,1936.3,1935.8,0.0011]
[1772945867798,1.5332966,1936.3,1935.8,0.0011]
[1772945869090,0.24026258,1936.2,1935.8,0.0011]
[1772945869694,1.52960386,1936.1,1935.8,0.0011]
[1772945869890,1.29125561,1936.1,1935.8,0.0011]
[1772945870091,1.29125561,1936.1,1935.4,0.0011]
[1772945870092,0.23834825,1936.0,1935.4,0.0011]
[1772945870292,0.23834825,1936.0,1935.4,0.53296006]
[1772945872093,1.52488686,1935.9,1935.4,0.53296006]
[1772945872605,1.29138901,1935.9,1935.5,0.53186006]
[1772945874288,5.16555607,1936.0,1935.5,0.53186006]
[1772945874711,5.16555607,1936.0,1935.5,0.53296006]
[1772945877709,1.51334261,1936.2,1935.6,0.53186006]
[1772945879635,0.22027481,1936.1,1935.6,0.53186006]
[1772945879924,0.22027481,1936.1,1935.5,0.0011]
[1772945881388,0.22027481,1936.1,1935.5,0.53296006]
[1772945881594,1.29132231,1936.0,1935.6,0.50398843]
[1772945881817,1.51157709,1936.1,1935.6,0.50398843]
[1772945882118,1.29130228,1936.1,1935.6,0.50398843]
[1772945882422,1.50510603,1936.3,1935.6,0.50398843]
[1772945883233,0.21307076,1936.2,1935.6,0.50398843]
[1772945883817,1.29125561,1936.1,1935.6,0.50398843]
[1772945883991,1.29125561,1936.1,1935.6,1.79556187]
[1772945884194,1.29125561,1936.1,1935.6,0.50398843]
[1772945885428,1.29125561,1936.1,1935.6,1.79556477]
[1772945885721,1.29125561,1936.1,1935.6,0.50398843]
[1772945886028,1.29125561,1936.1,1935.7,0.51215962]
[1772945886403,1.29122959,1936.2,1935.7,0.51215962]
[1772945886603,1.29215749,1936.3,1935.7,0.51215962]
[1772945886829,1.29212404,1936.3,1935.7,0.51215962]
[1772945887524,0.001,1936.3,1935.9,0.51215962]
[1772945887826,0.001,1936.3,1936.1,0.51215962]
[1772945888203,0.204795,1936.6,1936.1,0.51215962]
[1772945889924,0.001,1936.8,1936.2,0.51215962]
[1772945890128,0.00153886,1937.0,1936.3,0.51215962]
[1772945890602,1.29017388,1937.8,1936.2,0.51215962]
[1772945890999,0.00153886,1938.0,1936.6,0.51215962]
[1772945891205,1.29152887,1938.0,1936.8,0.51215962]
[1772945891401,1.24152887,1938.0,1937.0,0.51215962]
[1772945891602,1.29076573,1938.4,1937.0,0.51369848]
[1772945891816,1.29075079,1938.4,1937.0,0.51369848]
[1772945892017,0.001,1938.4,1937.4,0.51215962]
[1772945893328,2.5317145,1938.4,1937.4,0.51215962]
[1772945894028,1.28979002,1938.3,1937.4,0.51215962]
[1772945894199,1.28979002,1938.3,1937.5,0.51215962]
[1772945895121,1.29077372,1938.4,1937.5,0.51215962]
[1772945895822,1.29073996,1938.4,1937.5,0.51215962]
[1772945896019,0.001,1938.4,1937.5,0.51215962]
[1772945896215,0.001,1938.4,1937.7,0.51215962]
[1772945897321,0.50660795,1938.2,1937.2,0.51215962]
[1772945898335,0.50660795,1938.0,1937.2,0.51215962]
[1772945898850,2.68492312,1938.1,1937.3,0.51215962]
[1772945899007,0.50660795,1938.0,1937.1,0.86719172]
[1772945899341,0.50660795,1938.0,1937.2,0.51215962]
[1772945899837,0.50660795,1938.0,1937.1,0.3550321]
[1772945900436,1.29005624,1937.9,1937.2,0.51215962]
[1772945900910,1.29005472,1938.0,1937.2,0.51215962]
[1772945901551,5.15953191,1938.2,1937.3,0.51215962]
[1772945901552,1.28986152,1938.2,1937.3,0.51215962]
[1772945901867,1.28983808,1938.3,1937.3,0.51215962]
[1772945902359,0.001,1938.4,1937.5,0.43045582]
[1772945903048,0.50760795,1938.4,1937.5,0.43045582]
[1772945904356,1.28979002,1938.3,1937.6,1.29025598]
[1772945904551,1.28979002,1938.3,1937.5,0.43045582]
[1772945904552,1.28979002,1938.3,1937.5,1.72072689]
[1772945904862,0.50660795,1938.2,1937.2,2.82461514]
[1772945905046,0.50660795,1938.2,1937.2,1.71561514]
[1772945905745,0.50660795,1938.2,1937.3,0.42335204]
[1772945906448,1.28992312,1938.1,1937.3,1.71376024]
[1772945908468,1.29005624,1937.9,1937.1,1.64561577]
[1772945908645,1.79666419,1937.9,1937.1,1.64561782]
[1772945908840,0.50660795,1937.8,1937.1,0.3550321]
[1772945909966,1.29005624,1937.9,1937.1,0.77131592]
[1772945910286,1.29005624,1937.9,1937.1,2.06185701]
[1772945911290,0.50660795,1937.8,1937.1,0.77131592]
[1772945911788,0.50660795,1937.8,1937.1,2.06188592]
[1772945911957,0.50660795,1937.8,1937.2,0.0011]
[1772945913896,1.29018939,1937.7,1937.2,0.0011]
[1772945914262,1.7940137,1937.7,1937.2,0.0011]
[1772945914887,1.29017157,1937.8,1937.2,0.40877465]
[1772945917191,1.29017157,1937.8,1937.0,0.00263886]
[1772945917192,0.50382431,1937.7,1937.0,0.00263886]
[1772945918289,1.29025598,1937.6,1937.0,0.00263886]
[1772945918608,0.50382431,1937.5,1937.0,0.00263886]
[1772945920811,1.29032136,1937.6,1937.0,0.00263886]
[1772945921677,1.79414567,1937.6,1937.0,0.00263886]
[1772945922810,1.79411269,1937.6,1937.0,0.00263886]
[1772945924412,1.79411269,1937.6,1937.1,0.0011]
[1772945925091,0.50382431,1937.5,1936.9,0.0011]
[1772945927413,1.29038918,1937.4,1936.9,0.0011]
[1772945927618,0.50382431,1937.3,1936.9,0.0011]
[1772945930027,1.2905224,1937.2,1936.9,0.0011]
[1772945930634,1.79432902,1937.3,1936.9,0.0011]
[1772945930801,1.29050471,1937.3,1936.9,0.0011]
[1772945931116,1.29043713,1937.4,1936.9,0.0011]
[1772945931318,0.50636317,1938.0,1937.0,0.39139914]
[1772945931548,0.50382431,1937.9,1937.0,0.39139914]
[1772945931938,1.79394712,1937.8,1937.1,1.29058902]
[1772945932726,0.50382431,1937.8,1937.1,1.68205673]
[1772945933938,1.79396556,1937.8,1937.1,1.68205673]
[1772945936242,1.79396556,1937.8,1937.2,0.39186217]
[1772945936836,0.50382431,1937.8,1937.2,0.39186217]
[1772945937046,1.79640269,1938.0,1937.2,0.39186217]
[1772945937384,0.001,1937.7,1937.2,0.39186217]
[1772945938048,0.001,1937.7,1937.3,1.29045578]
[1772945938230,0.001,1937.7,1937.4,0.39211574]
[1772945939848,0.50382431,1937.9,1937.3,1.29045578]
[1772945940046,0.40382431,1937.9,1937.3,1.29045578]
[1772945940244,0.40382431,1937.9,1937.3,0.49136457]
[1772945941759,0.00253886,1938.0,1937.3,0.49136457]
[1772945942263,0.00253886,1938.0,1937.5,0.49195607]
[1772945943650,0.4797887,1938.0,1937.4,1.29038918]
[1772945943862,0.4797887,1938.0,1937.2,2.45952221]
[1772945944450,0.47724984,1937.8,1937.2,2.45952221]
[1772945944650,0.47724984,1937.9,1937.3,0.47589648]
[1772945945145,0.47724984,1937.9,1937.2,1.29052221]
[1772945945874,0.47724984,1937.9,1937.2,1.76641869]
[1772945946445,1.76735747,1937.9,1937.2,1.76641869]
[1772945947147,0.47724984,1937.8,1937.1,1.29054646]
[1772945947781,0.47724984,1937.8,1937.1,1.76644294]
[1772945947969,0.47724984,1937.8,1937.1,1.76648444]
[1772945948887,1.29018939,1937.7,1937.1,1.76648444]
[1772945949872,1.29018939,1937.7,1937.3,0.0011]
[1772945950664,1.76742306,1937.8,1937.3,0.0011]
[1772945950864,0.47724984,1937.8,1937.3,0.0011]
[1772945951184,1.76737303,1937.8,1937.3,0.47699648]
[1772945951480,0.47724984,1937.8,1937.3,0.47699648]
[1772945951897,1.76739952,1937.8,1937.3,0.47699648]
[1772945952090,1.76739952,1937.8,1937.3,0.0011]
[1772945953089,1.29014968,1937.8,1937.3,0.0011]
[1772945953269,0.47724984,1937.7,1937.0,1.76765178]
[1772945953464,0.47724984,1937.7,1937.0,1.2917553]
[1772945953672,0.47724984,1937.7,1937.0,1.29174483]
[1772945955167,1.76744535,1937.7,1937.0,0.47699648]
[1772945956206,0.47724984,1937.8,1937.0,0.47699648]
[1772945956895,0.61401045,1937.9,1937.0,0.47699648]
[1772945957198,0.61401045,1937.9,1937.2,0.47589648]
[1772945957603,2.38132288,1937.9,1937.2,0.47589648]
[1772945957775,0.47724984,1937.8,1937.2,0.47589648]
[1772945958906,0.61401045,1937.9,1937.2,0.47589648]
[1772945959105,0.61401045,1937.9,1937.3,1.29045578]
[1772945959408,0.61401045,1937.9,1937.4,0.47589648]
[1772945961204,0.47724984,1937.8,1937.1,5.63810994]
[1772945961407,0.47724984,1937.8,1937.2,0.47589648]
[1772945963018,0.76950656,1937.8,1937.2,0.47589648]
[1772945963398,0.76950656,1937.8,1937.3,1.76745226]
[1772945963600,2.05963751,1937.8,1937.3,1.76745226]
[1772945963995,0.76950656,1937.8,1937.3,1.76745226]
[1772945966091,0.29225672,1937.8,1937.4,0.47589648]
[1772945967392,0.00253886,1938.0,1937.5,0.47589648]
[1772945968416,0.00253886,1938.0,1937.7,0.47589648]
[1772945970345,1.2907753,1938.4,1937.7,0.47589648]
[1772945971144,1.29072571,1938.4,1937.7,0.47589648]
[1772945971546,1.29072462,1938.4,1937.7,0.47589648]
[1772945972138,0.05761384,1938.0,1937.7,0.47589648]
[1772945972347,0.49792881,1937.9,1937.5,2.46329175]
[1772945972530,0.05761384,1938.0,1937.6,0.49449653]
[1772945974523,0.05761384,1938.0,1937.3,5.16289795]
[1772945974524,0.49792881,1937.9,1937.3,1.29150559]
[1772945974841,0.49792881,1937.9,1937.3,1.78638721]
[1772945975257,0.001,1937.9,1937.4,0.49688134]
[1772945977280,0.001,1937.9,1937.5,1.29032258]
[1772945977447,0.001,1937.9,1937.5,1.78720392]
[1772945977779,0.001,1937.9,1937.6,0.49688134]
[1772945978463,0.17976296,1938.1,1937.6,0.49688134]
[1772945979749,0.17976296,1938.1,1937.7,1.78707073]
[1772945982790,0.17976296,1938.1,1937.7,1.29018939]
[1772945982996,0.17976296,1938.1,1937.8,0.49688134]
[1772945984472,0.17976296,1938.1,1937.9,1.29005624]
[1772945984977,0.17976296,1938.1,1937.8,1.78695494]
[1772945985996,1.96762348,1938.1,1937.6,1.78707458]
[1772945986187,0.67769177,1938.1,1937.6,1.78707458]
[1772945986696,0.67769177,1938.1,1937.7,0.0011]
[1772945987206,0.001,1938.0,1937.7,0.0011]
[1772945993784,0.49792881,1938.9,1937.7,0.49798134]
[1772945993983,0.49792881,1938.8,1938.0,0.00153886]
[1772945994196,0.49792881,1938.8,1937.7,0.49798134]
[1772945994585,0.49792881,1938.4,1937.7,0.49798134]
[1772945996807,0.49792881,1938.2,1937.7,0.0011]
[1772945998011,0.01902628,1938.5,1937.8,0.49688134]
[1772945998216,0.49792881,1938.4,1937.8,0.49688134]
[1772945998507,0.49792881,1938.4,1937.7,0.0011]
[1772945999209,0.49792881,1938.2,1937.7,0.0011]
[1772945999383,0.49792881,1938.2,1937.7,0.49798134]
[1772945999584,0.49792881,1938.2,1937.8,0.0011]
[1772946001209,0.49892881,1938.3,1937.8,0.49798134]
[1772946001890,0.49892881,1938.3,1937.7,0.0011]
[1772946002290,0.001,1938.3,1937.7,0.52003608]
[1772946003183,0.001,1938.3,1937.8,1.29012281]
[1772946003386,0.01902628,1938.5,1937.9,0.51858461]
[1772946004512,0.01902628,1938.5,1938.1,0.51858461]
[1772946005413,0.01902628,1938.5,1938.2,1.80844117]
[1772946006211,1.81890565,1938.8,1938.2,1.80844117]
[1772946006642,1.81890565,1938.8,1938.3,0.51858461]
[1772946007202,1.28947277,1938.8,1938.3,0.51858461]
[1772946007412,1.81900768,1938.7,1938.1,1.80845536]
[1772946007606,0.52943288,1938.6,1938.1,1.80845536]
[1772946008222,0.52943288,1938.6,1937.8,0.51858461]
[1772946009412,1.28965695,1938.5,1937.8,1.80864636]
[1772946009600,1.81908983,1938.5,1937.9,0.51858461]
[1772946009917,0.52943288,1938.4,1937.7,0.0011]
[1772946011316,0.52943288,1938.4,1937.8,0.0011]
[1772946011492,1.8192229,1938.3,1937.8,0.0011]
[1772946012218,0.52943288,1938.2,1937.8,0.0011]
[1772946013617,1.81932109,1938.2,1937.8,0.0011]
[1772946014220,0.52943288,1938.2,1937.8,0.0011]
[1772946014521,1.81929817,1938.2,1937.8,0.0011]
[1772946016996,1.81929817,1938.2,1937.8,0.51968461]
[1772946019004,0.52943288,1938.2,1937.8,1.80980433]
[1772946019320,1.28984011,1938.3,1937.8,0.51968461]
[1772946019520,1.28984011,1938.3,1937.8,1.80978603]
[1772946019896,1.81927299,1938.3,1937.8,1.80978603]
[1772946020596,1.81926298,1938.3,1937.9,0.51858461]
[1772946021823,1.2898301,1938.3,1937.9,0.51858461]
[1772946022001,1.289773,1938.4,1937.9,0.51858461]
[1772946022201,0.52943288,1938.4,1937.9,0.51858461]
[1772946022592,1.81919028,1938.4,1938.0,0.51858461]
[1772946023206,1.82019028,1938.4,1938.0,0.51858461]
[1772946024126,0.001,1938.7,1938.1,0.51858461]
[1772946024731,0.001,1938.7,1938.2,1.80844117]
[1772946025125,0.001,1938.7,1938.3,0.51858461]
[1772946026019,0.53043288,1938.7,1937.9,1.80969421]
[1772946026220,0.53043288,1938.7,1938.0,0.51858461]
[1772946027027,1.81996318,1938.7,1938.2,0.51858461]
[1772946027341,0.53043288,1938.7,1938.2,0.51858461]
[1772946028127,0.001,1938.7,1938.2,0.51858461]
[1772946028434,1.81996186,1938.7,1938.2,0.51858461]
[1772946029112,1.81996053,1938.7,1938.2,1.80838721]
[1772946029524,0.001,1938.7,1938.3,0.51858461]
[1772946031148,0.001,1938.7,1938.4,1.28972348]
[1772946031527,0.001,1938.7,1938.5,0.51858461]
[1772946031830,0.0096591,1938.9,1938.6,0.51858461]
[1772946032015,0.52943288,1939.3,1938.8,0.51858461]
[1772946032639,0.003398,1939.0,1938.8,0.51858461]
[1772946032844,0.51686216,1939.4,1938.8,0.51858461]
[1772946033214,2.15103449,1939.6,1939.0,0.52054949]
[1772946033415,0.51686216,1939.5,1939.0,0.52054949]
[1772946033620,2.15102857,1939.6,1939.0,0.52054949]
[1772946034322,0.86209595,1939.6,1939.0,0.52054949]
[1772946034537,2.15102425,1939.6,1939.0,0.52054949]
[1772946034854,0.86209595,1939.6,1939.0,0.52054949]
[1772946035216,0.86209595,1939.6,1939.2,0.52054949]
[1772946035217,0.34523379,1939.6,1939.2,0.52054949]
[1772946036240,1.63416939,1939.6,1939.2,0.52054949]
[1772946036426,2.15103155,1939.6,1939.2,0.52054949]
[1772946036663,0.51686216,1939.5,1938.7,0.52054949]
[1772946036930,0.51686216,1939.5,1938.9,0.52164949]
[1772946037127,0.001,1939.3,1938.9,0.52164949]
[1772946037425,0.001,1939.3,1939.0,1.28932439]
[1772946037641,0.51786216,1939.3,1938.9,0.52164949]
[1772946037815,0.001,1939.3,1938.9,0.52164949]
[1772946038016,0.001,1939.3,1939.0,0.52054949]
[1772946038851,0.34523379,1939.6,1939.0,0.52054949]
[1772946039019,1.63416878,1939.6,1939.0,0.52054949]
[1772946039435,1.63415958,1939.6,1939.2,0.52054949]
[1772946039616,0.34523379,1939.6,1939.2,0.52054949]
[1772946040869,1.444115,1939.8,1939.2,0.52054949]
[1772946041166,0.51686216,1939.7,1939.2,0.52054949]
[1772946041337,0.51686216,1939.7,1939.1,1.2892579]
[1772946041538,1.28890915,1939.7,1939.2,0.52054949]
[1772946041863,1.80577131,1939.7,1939.2,0.52054949]
[1772946042538,0.51686216,1939.6,1939.1,1.2892579]
[1772946042951,0.51686216,1939.6,1939.1,0.52054949]
[1772946043770,0.51686216,1939.5,1939.1,0.52054949]
[1772946046044,1.80587275,1939.5,1939.1,0.52054949]
[1772946047054,1.28901059,1939.5,1939.1,0.52054949]
[1772946048366,0.51686216,1939.5,1939.1,0.52054949]
[1772946049871,0.51686216,1939.5,1939.1,1.80977901]
[1772946050167,0.51686216,1939.5,1939.1,0.52054949]
[1772946050345,0.51786216,1939.4,1939.0,1.28929324]
[1772946051146,0.001,1939.4,1939.1,0.52054949]
[1772946052066,0.51786216,1939.4,1938.9,1.81100583]
[1772946052450,0.51786216,1939.4,1939.1,1.80980739]
[1772946052451,0.001,1939.4,1939.1,1.80980739]
[1772946054377,0.001,1939.4,1939.2,0.52054949]
[1772946054549,0.001,1939.4,1939.2,1.80973129]
[1772946059089,0.001,1939.4,1939.2,0.52054949]
[1772946059681,0.001,1939.4,1939.3,0.52054949]
[1772946060473,0.155314,1939.8,1939.4,0.52054949]
[1772946060675,1.71126479,1939.8,1939.4,1.80958934]
[1772946060876,0.42246797,1939.8,1939.4,1.80958934]
[1772946063385,0.42246797,1939.8,1939.5,0.52721501]
[1772946064285,0.42246797,1939.8,1939.4,1.28903985]